bitfinex-derivatives/quotes_SOLF0:USTF0_20260308
["timestamp","ask_amount","ask_price","bid_price","bid_amount"]
[1773004099085,3.79223388,82.19,82.08,37.24352782]
[1773004099086,3.79223388,82.18,82.139,13.21477767]
[1773004104896,3.79223388,82.18,82.14,10.957]
[1773004105093,3.79223388,82.18,82.141,13.23658354]
[1773004106798,3.79223388,82.18,82.143,13.24081295]
[1773004110401,10.951,82.188,82.143,13.24081295]
[1773004110701,10.951,82.188,82.146,10.956]
[1773004110899,14.74423388,82.18,82.143,13.24081295]
[1773004111599,10.951,82.188,82.143,13.24081295]
[1773004115504,3.79223388,82.18,82.143,13.24081295]
[1773004117406,3.79223388,82.18,82.144,10.956]
[1773004117705,3.79223388,82.18,82.145,13.23016826]
[1773004118303,3.79223388,82.18,82.113,13.23401018]
[1773004118507,3.79223388,82.15,82.113,13.23401018]
[1773004120098,3.79223388,82.14,82.113,13.23401018]
[1773004120797,10.956,82.147,82.113,13.23401018]
[1773004123407,3.79223388,82.15,82.113,13.23401018]
[1773004125016,3.79223388,82.15,82.114,10.96]
[1773004125217,3.79223388,82.15,82.115,13.3147908]
[1773004125417,3.79223388,82.16,82.115,13.3147908]
[1773004126919,3.79223388,82.16,82.118,13.31811278]
[1773004138624,10.956,82.148,82.108,13.34960388]
[1773004140320,3.79223388,82.15,82.108,13.34960388]
[1773004140522,3.79223388,82.16,82.111,13.35289969]
[1773004141816,10.955,82.159,82.111,24.31389969]
[1773004142026,10.955,82.159,82.112,13.34985721]
[1773004146823,3.79370861,82.16,82.112,13.34985721]
[1773004147031,3.79370861,82.15,82.112,13.34985721]
[1773004149532,3.79370861,82.14,82.091,13.34403293]
[1773004149830,15.12968304,82.188,82.036,12.18]
[1773004149831,3.79370861,82.15,82.101,13.34403293]
[1773004150831,3.79370861,82.15,82.105,13.34661321]
[1773004151934,3.79370861,82.15,82.106,10.961]
[1773004152235,3.79370861,82.15,82.107,13.35335812]
[1773004153329,3.79370861,82.16,82.111,13.35811784]
[1773004153629,3.79370861,82.17,82.111,13.35811784]
[1773004153829,10.953,82.167,82.124,13.35811784]
[1773004154037,3.79370861,82.16,82.124,13.35811784]
[1773004156234,3.79370861,82.14,82.108,13.35945265]
[1773004156432,3.79370861,82.12,82.062,13.35945265]
[1773004156631,3.79370861,82.12,81.96,75.39836699]
[1773004156632,3.79370861,82.09,82.041,13.35945265]
[1773004156935,3.79370861,82.08,82.041,13.35945265]
[1773004157633,3.79370861,82.07,81.986,13.36399223]
[1773004157934,11.92695198,82.083,81.986,13.36399223]
[1773004157935,3.79370861,82.03,81.986,13.36399223]
[1773004160141,3.79370861,82.03,81.98,3.79370861]
[1773004160336,3.79370861,82.05,81.991,13.30393448]
[1773004161338,3.79370861,82.06,82.001,13.24536709]
[1773004161848,3.79370861,82.06,82.01,3.79370861]
[1773004162137,3.79370861,82.07,82.011,13.24536709]
[1773004162340,3.79370861,82.07,82.021,13.24791412]
[1773004163634,3.79370861,82.08,82.03,3.79370861]
[1773004164037,3.79370861,82.07,82.021,13.24791412]
[1773004166934,3.79370861,82.06,82.021,13.24791412]
[1773004168541,3.79370861,82.05,82.001,13.56384579]
[1773004168944,10.966,82.069,82.011,13.56384579]
[1773004168945,3.79370861,82.06,82.011,13.56384579]
[1773004172365,10.965,82.08,82.011,13.56384579]
[1773004172366,3.79370861,82.05,82.011,13.56384579]
[1773004174363,3.79370861,82.06,82.011,13.56384579]
[1773004175261,10.967,82.069,82.011,13.56384579]
[1773004175467,3.79370861,82.06,82.011,13.56384579]
[1773004176971,10.968,82.059,82.011,13.56384579]
[1773004177168,3.79370861,82.05,82.011,13.56384579]
[1773004178769,3.79370861,82.05,81.95,62.0]
[1773004178770,3.79370861,82.02,81.936,12.18]
[1773004179070,3.79370861,81.98,81.941,13.55548104]
[1773004179268,3.79370861,81.97,81.909,13.56008361]
[1773004179565,3.79370861,81.95,81.909,13.56008361]
[1773004179864,3.79370861,81.95,81.837,202.57498737]
[1773004180068,3.79370861,81.95,81.9,3.79370861]
[1773004180262,3.79370861,81.94,81.908,0.00030836]
[1773004180464,3.79370861,81.92,81.908,0.00030836]
[1773004181064,3.79370861,81.93,81.908,0.00030836]
[1773004181571,10.22021776,81.95,81.908,0.00030836]
[1773004181866,10.22021776,81.97,81.908,0.00030836]
[1773004182065,10.22021776,81.96,81.908,0.00030836]
[1773004182260,10.979,81.979,81.908,6.67547949]
[1773004182563,10.22021776,81.97,81.908,0.00030836]
[1773004182770,10.98,81.966,81.908,0.00030836]
[1773004183071,10.22021776,81.97,81.908,0.00030836]
[1773004183271,10.22021776,81.95,81.908,0.00030836]
[1773004183570,10.981,81.957,81.908,0.00030836]
[1773004183761,10.22021776,81.97,81.908,0.00030836]
[1773004184568,10.98,81.969,81.908,0.00030836]
[1773004184969,10.22021776,81.97,81.908,0.00030836]
[1773004185466,10.981,81.957,81.908,0.00030836]
[1773004185672,10.22021776,81.97,81.846,7.15941296]
[1773004185974,10.986,81.922,81.851,7.15941296]
[1773004187773,10.986,81.922,81.852,7.16658848]
[1773004188872,10.986,81.922,81.854,7.16698479]
[1773004190375,10.985,81.933,81.857,7.14393182]
[1773004191672,10.22021776,81.94,81.861,7.15174796]
[1773004191875,10.22021776,81.96,81.871,7.15174796]
[1773004192772,10.984,81.938,81.871,7.15174796]
[1773004193676,0.00059007,82.079,81.97,7.16263365]
[1773004193887,10.22021776,82.07,81.981,7.16263365]
[1773004194179,10.967,82.065,81.981,7.16263365]
[1773004194877,10.973,82.021,81.905,7.16300902]
[1773004195069,10.22021776,82.01,81.921,7.16300902]
[1773004195681,10.22021776,82.01,81.938,10.984]
[1773004196082,10.22021776,82.04,81.941,7.14662649]
[1773004197882,10.974,82.013,81.944,10.983]
[1773004198289,10.978,81.983,81.918,10.987]
[1773004198472,10.22021776,82.0,81.901,7.18950478]
[1773004198877,10.22021776,82.0,81.903,10.989]
[1773004199073,10.22021776,82.0,81.904,7.18950478]
[1773004200378,10.978,81.984,81.91,7.13870579]
[1773004200579,10.58562262,82.011,81.921,7.13870579]
[1773004201283,10.978,81.983,81.921,7.13870579]
[1773004203279,10.979,81.974,81.921,7.13870579]
[1773004204382,10.20806402,82.0,81.921,7.13870579]
[1773004205687,10.98,81.965,81.921,7.13870579]
[1773004207286,10.58562262,81.998,81.921,7.13870579]
[1773004207488,10.58562262,81.999,81.921,7.13870579]
[1773004207689,10.58562262,81.998,81.921,7.13870579]
[1773004207884,10.58562262,81.999,81.921,7.13870579]
[1773004208091,10.58562262,81.998,81.921,7.13870579]
[1773004208295,10.58562262,81.997,81.921,7.13870579]
[1773004208594,10.58562262,81.999,81.921,7.13870579]
[1773004208787,10.58562262,81.998,81.921,7.13870579]
[1773004208987,10.58562262,81.997,81.921,7.13870579]
[1773004209196,10.58562262,81.996,81.921,7.13870579]
[1773004209395,10.58562262,81.995,81.921,7.13870579]
[1773004209587,10.58562262,81.994,81.921,7.13870579]
[1773004209894,10.979,81.976,81.921,7.13870579]
[1773004210494,10.98,81.967,81.921,7.13870579]
[1773004213098,10.979,81.977,81.921,7.13870579]
[1773004214198,10.58562262,82.009,81.932,7.10113177]
[1773004214394,10.58562262,82.008,81.932,7.10113177]
[1773004214591,10.58562262,82.007,81.932,7.10113177]
[1773004214896,10.58562262,82.006,81.932,7.10113177]
[1773004215092,10.58562262,82.005,81.932,7.10113177]
[1773004215286,10.58562262,82.004,81.932,7.10113177]
[1773004215487,10.58562262,82.003,81.932,7.10113177]
[1773004215690,10.58562262,82.002,81.932,7.10113177]
[1773004215887,10.977,81.988,81.932,7.10113177]
[1773004222101,10.978,81.981,81.932,7.10113177]
[1773004223199,10.57504173,81.98,81.932,7.10113177]
[1773004223396,10.20806402,82.01,81.932,7.10113177]
[1773004223599,10.20806402,81.99,81.932,7.10113177]
[1773004223799,10.57489283,81.989,81.932,7.10113177]
[1773004224000,14.84321995,82.002,81.932,7.10113177]
[1773004224001,10.57489283,81.988,81.932,7.10113177]
[1773004224201,10.57489283,81.987,81.932,7.10113177]
[1773004224401,10.57489283,81.986,81.932,7.10113177]
[1773004224603,10.57489283,81.985,81.932,7.10113177]
[1773004224798,10.98,81.971,81.932,7.10113177]
[1773004229106,10.978,81.98,81.932,7.10113177]
[1773004229305,10.5804827,81.979,81.932,7.10113177]
[1773004229507,10.5804827,81.978,81.932,7.10113177]
[1773004229806,10.5804827,81.977,81.932,7.10113177]
[1773004230009,14.84321995,82.009,81.932,7.10113177]
[1773004230204,10.20806402,82.01,81.932,7.10113177]
[1773004230205,10.58061922,82.008,81.932,7.10113177]
[1773004230408,10.58061922,82.007,81.932,7.10113177]
[1773004230708,25.05128397,82.01,81.932,7.10113177]
[1773004230709,10.58061922,82.006,81.932,7.10113177]
[1773004230906,10.979,81.974,81.932,7.10113177]
[1773004231401,10.978,81.983,81.932,7.10113177]
[1773004235605,10.98,81.968,81.921,7.03451263]
[1773004239504,10.978,81.985,81.924,7.01872156]
[1773004239711,10.62546551,81.984,81.924,7.01872156]
[1773004240013,10.62546551,81.983,81.924,7.01872156]
[1773004240213,10.62546551,81.982,81.924,7.01872156]
[1773004240408,10.62546551,81.981,81.924,7.01872156]
[1773004240606,10.62546551,81.98,81.924,7.01872156]
[1773004240816,10.979,81.978,81.926,7.01902234]
[1773004241015,10.62546551,81.977,81.926,7.01902234]
[1773004241315,10.62546551,81.976,81.926,7.01902234]
[1773004241515,10.20806402,82.01,81.926,7.01902234]
[1773004241715,10.62776013,82.009,81.926,7.01902234]
[1773004241921,10.979,81.975,81.926,7.01902234]
[1773004242823,10.979,81.975,81.861,12.18]
[1773004242824,10.20806402,81.96,81.871,7.02286736]
[1773004243016,10.20806402,81.94,81.871,7.02286736]
[1773004243216,10.20806402,82.01,81.871,7.02286736]
[1773004243217,10.62566095,81.939,81.871,7.02286736]
[1773004243521,10.61696699,81.938,81.871,7.02286736]
[1773004243816,10.61696699,81.937,81.851,7.02716319]
[1773004244019,10.61696699,81.936,81.851,7.02716319]
[1773004244321,10.61696699,81.935,81.851,7.02716319]
[1773004244521,10.988,81.912,81.851,7.02716319]
[1773004245624,10.96199612,81.912,81.851,7.02716319]
[1773004248932,10.989,81.902,81.851,7.02716319]
[1773004249222,10.5732902,81.936,81.851,7.02716319]
[1773004249425,10.5732902,81.935,81.851,7.02716319]
[1773004249627,10.5732902,81.934,81.851,7.02716319]
[1773004249824,10.5732902,81.933,81.851,7.02716319]
[1773004250022,10.5732902,81.939,81.851,7.02716319]
[1773004250222,10.987,81.912,81.851,7.02716319]
[1773004250721,10.5732902,81.939,81.851,7.02716319]
[1773004250927,10.20806402,81.95,81.851,7.02716319]
[1773004251919,10.986,81.925,81.854,6.9884648]
[1773004252126,10.39267178,81.949,81.854,6.9884648]
[1773004252322,10.988,81.907,81.854,6.9884648]
[1773004254930,10.39267178,81.945,81.856,6.97198392]
[1773004255130,10.20806402,81.95,81.856,6.97198392]
[1773004255830,10.985,81.929,81.873,6.97279313]
[1773004256026,11.2597839,81.977,81.873,6.97279313]
[1773004256027,10.39267178,81.958,81.873,6.97279313]
[1773004256231,10.39267178,81.969,81.873,6.97279313]
[1773004256430,10.39267178,81.968,81.873,6.97279313]
[1773004256625,10.39267178,81.967,81.873,6.97279313]
[1773004256823,10.984,81.939,81.875,6.97306767]
[1773004258833,10.984,81.939,81.877,6.95603043]
[1773004260535,10.985,81.932,81.877,6.95603043]
[1773004267444,10.986,81.924,81.877,6.95603043]
[1773004267641,10.986,81.924,81.89,3.81407893]
[1773004267842,10.986,81.924,81.89,10.62246255]
[1773004268144,10.985,81.932,81.901,6.80838362]
[1773004269145,10.982,81.951,81.911,6.82275913]
[1773004272143,10.982,81.951,81.92,3.81407893]
[1773004272343,10.982,81.951,81.911,6.82275913]
[1773004275146,10.981,81.96,81.93,3.81407893]
[1773004275347,10.3967467,81.978,81.93,3.81407893]
[1773004275548,296.61675402,81.979,81.92,3.81407893]
[1773004276348,296.61675402,81.979,81.92,10.66836665]
[1773004276753,10.981,81.961,81.92,10.66836665]
[1773004277852,10.981,81.961,81.921,6.9277251]
[1773004280856,10.98,81.97,81.931,6.92959224]
[1773004281756,10.98,81.97,81.94,3.81407893]
[1773004283251,3.81407893,82.0,81.941,6.93070622]
[1773004283447,10.36052546,81.999,81.941,6.93070622]
[1773004283653,10.36052546,81.998,81.941,6.93070622]
[1773004283955,10.36052546,81.997,81.941,6.93070622]
[1773004284153,10.36052546,81.996,81.941,6.93070622]
[1773004284450,10.36052546,81.995,81.95,3.81407893]
[1773004284656,10.36052546,81.994,81.95,3.81407893]
[1773004284858,10.977,81.987,81.941,6.93070622]
[1773004285060,10.36257184,81.986,81.941,6.93070622]
[1773004285355,10.977,81.99,81.95,10.73408761]
[1773004287158,10.978,81.982,81.94,3.81407893]
[1773004287463,3.81407893,81.99,81.94,3.81407893]
[1773004287658,3.81407893,81.99,81.873,296.0]
[1773004287659,10.35576821,81.989,81.931,6.92516366]
[1773004287857,10.35576821,81.988,81.94,3.81407893]
[1773004288059,10.35576821,81.987,81.94,3.81407893]
[1773004288258,3.81407893,81.99,81.94,3.81407893]
[1773004288460,10.35356023,81.989,81.94,3.81407893]
[1773004288660,10.35356023,81.988,81.94,10.7394496]
[1773004288960,10.35356023,81.987,81.94,10.7394496]
[1773004289160,3.81407893,82.0,81.95,3.81407893]
[1773004289463,10.35355244,81.999,81.95,3.81407893]
[1773004289664,10.35355244,81.998,81.95,3.81407893]
[1773004289962,10.35355244,81.997,81.95,3.81407893]
[1773004290163,10.35355244,81.996,81.95,3.81407893]
[1773004290352,10.35355244,81.995,81.95,3.81407893]
[1773004290556,10.35355244,81.994,81.95,3.81407893]
[1773004290762,10.978,81.981,81.95,3.81407893]
[1773004292163,10.977,81.989,81.951,6.97227454]
[1773004293261,3.81407893,82.0,81.94,3.81407893]
[1773004293462,10.35605356,81.999,81.94,3.81407893]
[1773004293761,10.35605356,81.998,81.94,3.81407893]
[1773004293964,10.35605356,81.997,81.94,10.78747729]
[1773004294158,10.35605356,81.996,81.94,10.78747729]
[1773004294361,10.35605356,81.995,81.94,10.78747729]
[1773004294571,10.35605356,81.994,81.94,10.78747729]
[1773004294869,10.979,81.975,81.94,10.78747729]
[1773004295263,10.35680847,81.998,81.951,6.97342599]
[1773004295569,10.976,81.994,81.951,6.97342599]
[1773004295961,10.978,81.986,81.951,6.97342599]
[1773004296167,2.14087239,81.998,81.94,3.81407893]
[1773004297058,10.978,81.984,81.94,3.81407893]
[1773004298271,10.978,81.984,81.941,4.30724546]
[1773004299768,13.1051793,81.984,81.941,4.30724546]
[1773004300566,10.978,81.98,81.941,4.30724546]
[1773004304175,2.12882953,81.976,81.941,4.30724546]
[1773004305784,10.979,81.975,81.941,4.30724546]
[1773004306384,2.12882953,81.976,81.941,4.30724546]
[1773004313989,2.13555526,81.975,81.93,3.81407893]
[1773004314188,2.13555526,81.975,81.931,4.30724546]
[1773004315798,10.98,81.966,81.931,4.30724546]
[1773004318699,13.12924389,81.966,81.931,4.30724546]
[1773004320294,2.13714985,81.965,81.931,4.30724546]
[1773004320490,10.981,81.962,81.931,4.30724546]
[1773004321492,4.46419788,81.961,81.92,3.81407893]
[1773004321995,10.982,81.951,81.92,3.81407893]
[1773004322199,4.46419788,81.95,81.9,3.81407893]
[1773004322602,4.46419788,81.949,81.9,3.81407893]
[1773004323600,4.38063636,81.964,81.921,4.40781148]
[1773004323803,10.37456771,81.963,81.921,4.40781148]
[1773004324097,10.37456771,81.962,81.921,4.40781148]
[1773004324304,10.37456771,81.961,81.921,4.40781148]
[1773004324507,10.37456771,81.96,81.921,4.40781148]
[1773004324804,10.981,81.961,81.921,4.40781148]
[1773004325100,10.37419728,81.96,81.921,4.40781148]
[1773004325301,10.981,81.961,81.921,4.40781148]
[1773004325603,10.37381022,81.96,81.921,4.40781148]
[1773004325797,10.981,81.961,81.921,4.40781148]
[1773004325998,10.37381022,81.96,81.921,4.40781148]
[1773004326202,10.981,81.961,81.921,4.40781148]
[1773004326499,10.3734051,81.96,81.921,4.40781148]
[1773004326800,10.981,81.961,81.921,4.40781148]
[1773004327000,10.3734051,81.96,81.921,4.40781148]
[1773004327200,10.981,81.961,81.921,4.40781148]
[1773004327398,10.981,81.961,81.913,10.987]
[1773004327399,11.2597839,81.985,81.941,4.50083069]
[1773004327596,4.58648823,81.988,81.941,4.50083069]
[1773004327597,10.37536794,81.984,81.941,4.50083069]
[1773004327905,10.37536794,81.983,81.941,4.50083069]
[1773004328107,10.37536794,81.982,81.941,4.50083069]
[1773004328299,4.58648823,81.988,81.941,4.50083069]
[1773004328499,4.58648823,81.986,81.941,4.50083069]
[1773004328699,10.978,81.983,81.941,4.50083069]
[1773004328900,10.3766579,81.982,81.941,4.50083069]
[1773004329101,10.978,81.983,81.941,4.50083069]
[1773004329394,15.56548823,81.975,81.941,4.50083069]
[1773004329596,4.58648823,81.974,81.941,4.50083069]
[1773004331004,10.978,81.981,81.941,4.50083069]
[1773004333301,15.56448823,81.981,81.941,4.50083069]
[1773004333504,10.38055444,81.98,81.941,4.50083069]
[1773004333706,15.56448823,81.981,81.941,4.50083069]
[1773004333907,10.38055444,81.98,81.941,4.50083069]
[1773004334208,4.58648823,81.947,81.891,4.50083069]
[1773004334411,4.58648823,81.945,81.891,4.50083069]
[1773004334604,4.58648823,81.943,81.891,4.50083069]
[1773004335810,10.984,81.937,81.891,4.50083069]
[1773004338006,4.58648823,81.956,81.911,4.50083069]
[1773004338207,4.58648823,81.949,81.911,4.50083069]
[1773004339810,10.983,81.948,81.911,4.50083069]
[1773004347317,4.58648823,81.949,81.911,4.50083069]
[1773004351017,4.58648823,81.948,81.911,4.50083069]
[1773004352016,4.58648823,81.946,81.911,4.50083069]
[1773004354815,10.983,81.945,81.911,4.50083069]
[1773004355719,4.3884261,81.953,81.911,4.50083069]
[1773004356922,4.3884261,81.951,81.911,4.50083069]
[1773004360419,4.3884261,81.951,81.912,4.56250626]
[1773004365422,4.3884261,81.95,81.912,4.56250626]
[1773004372334,4.3884261,81.945,81.895,4.56250626]
[1773004372536,4.3884261,81.945,81.901,4.56250626]
[1773004373931,4.3884261,81.942,81.901,4.56250626]
[1773004377138,14.71723025,81.941,81.901,4.56250626]
[1773004377331,4.3884261,81.931,81.884,4.56250626]
[1773004378335,4.3884261,81.931,81.891,4.56250626]
[1773004380233,4.3884261,81.954,81.911,4.56250626]
[1773004380439,3.81090182,81.95,81.901,4.56250626]
[1773004380739,4.3884261,81.948,81.901,4.56250626]
[1773004380935,4.3884261,81.946,81.901,4.56250626]
[1773004381136,4.3884261,81.944,81.901,4.56250626]
[1773004381336,4.3884261,81.942,81.901,4.56250626]
[1773004381639,4.3884261,81.94,81.901,4.56250626]
[1773004381840,10.33424864,81.939,81.901,4.56250626]
[1773004382041,4.3884261,81.952,81.921,4.56250626]
[1773004382241,10.29976695,81.951,81.921,4.56250626]
[1773004382443,10.29976695,81.95,81.921,4.56250626]
[1773004382736,4.67878271,81.939,81.884,4.2423932]
[1773004382941,4.67878271,81.937,81.891,4.2423932]
[1773004383140,10.29976695,81.936,81.891,4.2423932]
[1773004383343,10.29976695,81.935,81.9,3.81090182]
[1773004383541,10.29976695,81.934,81.9,3.81090182]
[1773004383729,10.29976695,81.933,81.9,3.81090182]
[1773004383936,4.67878271,81.949,81.91,3.81090182]
[1773004384237,3.81090182,81.96,81.91,3.81090182]
[1773004384238,4.67878271,81.947,81.91,3.81090182]
[1773004384537,4.67878271,81.945,81.91,3.81090182]
[1773004384741,4.67878271,81.965,81.921,4.2423932]
[1773004384936,4.67878271,81.959,81.91,8.05329502]
[1773004385133,4.67878271,81.957,81.911,4.2423932]
[1773004385330,4.67878271,81.955,81.92,3.81090182]
[1773004385539,10.29380645,81.954,81.92,3.81090182]
[1773004385739,10.29380645,81.953,81.92,3.81090182]
[1773004385939,10.29380645,81.952,81.92,3.81090182]
[1773004386143,10.29380645,81.951,81.92,3.81090182]
[1773004386342,4.67878271,81.955,81.92,3.81090182]
[1773004386542,10.2937248,81.954,81.92,3.81090182]
[1773004386841,10.2937248,81.953,81.911,4.2423932]
[1773004387142,10.2937248,81.952,81.92,3.81090182]
[1773004387343,10.2937248,81.951,81.92,3.81090182]
[1773004387538,4.67878271,81.955,81.92,3.81145195]
[1773004387843,10.29375936,81.954,81.92,3.81145195]
[1773004388141,4.53592327,81.963,81.93,3.81145195]
[1773004388342,10.29376252,81.962,81.93,3.81145195]
[1773004388542,10.29376252,81.961,81.93,3.81145195]
[1773004388746,10.29376252,81.96,81.93,3.81145195]
[1773004389043,10.29376252,81.959,81.93,3.81145195]
[1773004389245,10.29376252,81.958,81.93,3.81145195]
[1773004389543,10.29376252,81.957,81.93,3.81145195]
[1773004389845,10.29376252,81.956,81.93,3.81145195]
[1773004390138,10.29376252,81.955,81.93,3.81145195]
[1773004390344,4.53592327,81.963,81.93,3.81145195]
[1773004390541,14.82910129,81.962,81.93,3.81145195]
[1773004390742,10.29317802,81.961,81.93,3.81145195]
[1773004390943,10.29317802,81.96,81.93,3.81145195]
[1773004391143,10.29317802,81.959,81.93,3.81145195]
[1773004391345,10.29317802,81.958,81.93,3.81145195]
[1773004391642,10.29317802,81.957,81.93,3.81145195]
[1773004391845,10.29317802,81.956,81.93,3.81145195]
[1773004392044,10.29317802,81.955,81.93,3.81145195]
[1773004392244,4.53592327,81.962,81.93,3.81145195]
[1773004392444,10.29267688,81.961,81.93,3.81145195]
[1773004392642,10.29267688,81.96,81.93,3.81145195]
[1773004392845,10.29267688,81.959,81.93,3.81145195]
[1773004393146,10.29267688,81.958,81.93,3.81145195]
[1773004393348,10.29267688,81.957,81.93,3.81145195]
[1773004393542,10.29267688,81.956,81.93,3.81145195]
[1773004393743,10.29267688,81.955,81.93,3.81145195]
[1773004393944,4.53592327,81.962,81.93,3.81145195]
[1773004394144,10.29244562,81.961,81.93,3.81145195]
[1773004394445,10.29244562,81.96,81.93,3.81145195]
[1773004394646,10.29244562,81.959,81.93,3.81145195]
[1773004394841,10.29244562,81.958,81.93,3.81145195]
[1773004395037,10.29244562,81.957,81.93,3.81145195]
[1773004395346,10.29244562,81.956,81.93,3.81145195]
[1773004395644,4.53592327,81.962,81.93,3.81145195]
[1773004395846,10.2921639,81.961,81.93,3.81145195]
[1773004396144,10.2921639,81.96,81.93,3.81145195]
[1773004396346,10.2921639,81.959,81.93,3.81145195]
[1773004396538,10.2921639,81.958,81.93,3.81145195]
[1773004396736,10.2921639,81.957,81.93,3.81145195]
[1773004396937,10.2921639,81.956,81.93,3.81145195]
[1773004397147,4.53592327,81.961,81.93,3.81145195]
[1773004397346,4.53592327,81.959,81.921,4.6513565]
[1773004397543,4.53592327,81.957,81.921,4.6513565]
[1773004397749,4.53592327,81.955,81.91,8.46280845]
[1773004397947,4.53592327,81.953,81.91,8.46280845]
[1773004398145,4.53592327,81.951,81.91,8.46280845]
[1773004398348,4.53592327,81.951,81.911,4.6513565]
[1773004400149,14.9458722,81.95,81.911,4.6513565]
[1773004400451,4.53592327,81.95,81.911,4.6513565]
[1773004403751,4.53592327,81.95,81.92,3.81145195]
[1773004404654,4.53592327,81.948,81.911,4.6513565]
[1773004404854,10.40424366,81.947,81.911,4.6513565]
[1773004405055,10.40424366,81.946,81.911,4.6513565]
[1773004405256,4.53592327,81.948,81.911,4.6513565]
[1773004405458,10.40423323,81.947,81.911,4.6513565]
[1773004405655,10.40423323,81.946,81.911,4.6513565]
[1773004405851,4.53592327,81.948,81.911,4.6513565]
[1773004406059,10.40422155,81.947,81.911,4.6513565]
[1773004406258,10.40422155,81.946,81.911,4.6513565]
[1773004406460,4.53592327,81.953,81.91,3.81145195]
[1773004406755,4.53592327,81.951,81.91,3.81145195]
[1773004406958,4.53592327,81.949,81.91,3.81145195]
[1773004407258,4.53592327,81.947,81.91,3.81145195]
[1773004407856,4.53592327,81.947,81.911,4.6513565]
[1773004409661,4.53592327,81.945,81.883,208.90582772]
[1773004409852,4.53592327,81.939,81.891,4.6513565]
[1773004410057,4.53592327,81.937,81.891,4.6513565]
[1773004410353,3.81145195,81.95,81.891,4.6513565]
[1773004410354,4.53592327,81.935,81.9,3.81145195]
[1773004410559,4.53592327,81.933,81.9,3.81145195]
[1773004410760,10.40324068,81.932,81.9,3.81145195]
[1773004411063,10.40324068,81.931,81.892,4.6513565]
[1773004411257,10.40324068,81.93,81.892,4.6513565]
[1773004411452,10.40324068,81.929,81.901,4.6513565]
[1773004411665,4.53592327,81.933,81.901,4.6513565]
[1773004411868,10.39452861,81.932,81.901,4.6513565]
[1773004412058,10.39452861,81.931,81.901,4.6513565]
[1773004412367,4.53592327,81.946,81.911,4.6513565]
[1773004412665,4.53592327,81.944,81.91,3.81145195]
[1773004412866,4.6098692,81.942,81.901,4.6513565]
[1773004413163,4.6098692,81.94,81.9,3.81145195]
[1773004413462,4.6098692,81.94,81.85,21.992]
[1773004413463,4.6098692,81.917,81.868,4.29205062]
[1773004413664,4.6098692,81.915,81.87,3.81145195]
[1773004413864,4.6098692,81.913,81.87,3.81145195]
[1773004414271,4.6098692,81.913,81.87,8.10350257]
[1773004414458,4.6098692,81.913,81.871,4.29205062]
[1773004417061,4.6098692,81.913,81.86,10.994]
[1773004417269,3.81145195,81.88,81.831,4.9249893]
[1773004417664,14.80245195,81.89,81.831,4.9249893]
[1773004417965,10.35947027,81.889,81.831,4.9249893]
[1773004418167,14.80245195,81.89,81.831,4.9249893]
[1773004418668,14.80245195,81.89,81.84,3.81145195]
[1773004419559,14.80245195,81.89,81.831,4.9249893]
[1773004420965,22.627855,81.938,81.8,62.0]
[1773004420966,3.81145195,81.91,81.861,4.86991182]
[1773004421366,3.81145195,81.92,81.861,4.86991182]
[1773004421564,10.33349366,81.919,81.861,4.86991182]
[1773004421765,10.988,81.911,81.861,4.86991182]
[1773004421966,3.81145195,81.91,81.861,4.86991182]
[1773004422264,3.81145195,81.91,81.86,3.81145195]
[1773004422765,22.627855,81.956,81.849,4.86510954]
[1773004422766,3.81145195,81.89,81.849,4.86510954]
[1773004422972,3.81145195,81.89,81.84,8.6761067]
[1773004424169,3.81145195,81.89,81.793,296.0]
[1773004424170,10.33349366,81.889,81.707,12.21]
[1773004424367,3.81145195,81.8,81.704,4.88149136]
[1773004424565,3.81145195,81.8,81.751,4.88149136]
[1773004424773,3.81145195,81.81,81.751,4.88149136]
[1773004424973,3.81145195,81.81,81.76,8.69294331]
[1773004425166,3.81145195,81.81,81.761,4.88149136]
[1773004426478,3.81145195,81.83,81.78,8.71629461]
[1773004427075,3.81145195,81.84,81.781,4.90484266]
[1773004427274,3.81145195,81.83,81.781,4.90484266]
[1773004428275,3.81145195,81.83,81.78,3.81145195]
[1773004429577,3.81145195,81.84,81.78,3.81145195]
[1773004429969,10.25636132,81.866,81.801,5.03010488]
[1773004430177,3.81145195,81.86,81.81,3.81145195]
[1773004430478,297.89217533,81.867,81.82,3.81145195]
[1773004431278,3.81145195,81.83,81.723,4.99219289]
[1773004431475,297.89217533,81.867,81.761,4.99219289]
[1773004431476,3.81145195,81.82,81.761,4.99219289]
[1773004431981,3.81145195,81.81,81.761,4.99219289]
[1773004432483,3.81145195,81.8,81.727,4.9918724]
[1773004432677,3.81145195,81.8,81.75,8.80332435]
[1773004432878,3.81145195,81.81,81.75,8.80332435]
[1773004433182,3.81145195,81.79,81.741,4.91403508]
[1773004433476,3.81145195,81.8,81.741,4.91403508]